fUST/lending_fUST_20251013
["ID","MTS","AMOUNT","RATE_DAILY","PERIOD"]
[391017717,1760290241569,-4481.06908841,0.000264,2]
[391017718,1760290241579,-577.21821669,0.00026443,2]
[391017719,1760290241589,-199.0,0.00026575,12]
[391017720,1760290241599,-150.0,0.00026673,2]
[391017721,1760290241609,-911.483903,0.00026676,2]
[391017722,1760290241620,-2088.78532203,0.000268,30]
[391017723,1760290241629,-199.0,0.00026849,13]
[391017724,1760290241638,-982.60871731,0.00026853,7]
[391017725,1760290241647,-860.0,0.00026902,2]
[391017726,1760290241657,-614.06193264,0.00027043,2]
[391017727,1760290241666,-823.0,0.00027085,2]
[391017728,1760290241675,-329.11185372,0.00027123,14]
[391017729,1760290241684,-250.0,0.00027221,2]
[391017730,1760290241694,-8145.08044381,0.00027297,2]
[391017731,1760290241704,-2502.26617491,0.00027297,2]
[391017732,1760290241713,-1981.1,0.00027316,2]
[391017733,1760290241723,-500.0,0.00027397,60]
[391017734,1760290241732,-500.0,0.00027397,60]
[391017735,1760290241742,-500.0,0.00027397,60]
[391017736,1760290241751,-500.0,0.00027397,60]
[391017737,1760290241762,-500.0,0.00027397,60]
[391017738,1760290241810,-500.0,0.00027397,60]
[391017739,1760290241820,-500.0,0.00027397,60]
[391017740,1760290241830,-584.45,0.00027397,60]
[391017741,1760290241839,-584.45,0.00027397,60]
[391017742,1760290241849,-584.45,0.00027397,60]
[391017743,1760290241858,-584.45,0.00027397,60]
[391017744,1760290241868,-584.45,0.00027397,60]
[391017745,1760290241877,-584.45,0.00027397,60]
[391017746,1760290241887,-584.45,0.00027397,60]
[391017747,1760290241896,-584.45,0.00027397,60]
[391017748,1760290241906,-584.45,0.00027397,60]
[391017749,1760290241915,-584.45,0.00027397,60]
[391017750,1760290241924,-584.45,0.00027397,60]
[391017751,1760290241934,-584.45,0.00027397,60]
[391017752,1760290241943,-584.45,0.00027397,60]
[391017753,1760290241953,-584.45,0.00027397,60]
[391017754,1760290241963,-584.45,0.00027397,60]
[391017755,1760290241972,-584.45,0.00027397,60]
[391017756,1760290241981,-584.45,0.00027397,60]
[391017757,1760290241991,-584.45,0.00027397,60]
[391017758,1760290242000,-584.45,0.00027397,60]
[391017759,1760290242009,-584.45,0.00027397,60]
[391017760,1760290242018,-584.45,0.00027397,60]
[391017761,1760290242028,-584.45,0.00027397,60]
[391017762,1760290242038,-584.45,0.00027397,60]
[391017763,1760290242048,-584.49653461,0.00027397,60]
[391017764,1760290242058,-500.0,0.00027397,60]
[391017765,1760290242070,-500.0,0.00027397,60]
[391017766,1760290242080,-500.0,0.00027397,60]
[391017767,1760290242089,-500.0,0.00027397,60]
[391017768,1760290242099,-500.0,0.00027397,60]
[391017769,1760290242109,-500.0,0.00027397,60]
[391017770,1760290242125,-500.0,0.00027397,60]
[391017771,1760290242135,-500.0,0.00027397,60]
[391017772,1760290242145,-500.0,0.00027397,60]
[391017773,1760290242156,-500.0,0.00027397,60]
[391017775,1760290242169,-500.0,0.00027397,60]
[391017776,1760290242178,-500.0,0.00027397,60]
[391017777,1760290242187,-500.0,0.00027397,60]
[391017778,1760290242197,-567.68992436,0.00027397,60]
[391017779,1760290242206,-500.0,0.00027397,60]
[391017780,1760290242216,-500.0,0.00027397,2]
[391017781,1760290242225,-500.0,0.00027397,2]
[391017782,1760290242237,-528.87535178,0.00027397,2]
[391017783,1760290242246,-327.53727812,0.00027397,2]
[391017784,1760290242255,-1000.0,0.00027397,2]
[391017785,1760290242265,-500.0,0.00027397,60]
[391017786,1760290242275,-500.0,0.00027397,60]
[391017787,1760290242284,-500.0,0.00027397,60]
[391017788,1760290242293,-500.0,0.00027397,60]
[391017789,1760290242302,-500.0,0.00027397,2]
[391017790,1760290242311,-500.0,0.00027397,2]
[391017791,1760290242321,-500.0,0.00027397,2]
[391017792,1760290242330,-500.0,0.00027397,2]
[391017794,1760290242350,-500.0,0.00027397,2]
[391017795,1760290242360,-500.0,0.00027397,2]
[391017796,1760290242370,-500.0,0.00027397,2]
[391017797,1760290242379,-500.0,0.00027397,2]
[391017798,1760290242389,-500.0,0.00027397,2]
[391017800,1760290242398,-500.0,0.00027397,2]
[391017801,1760290242407,-500.0,0.00027397,2]
[391017802,1760290242417,-500.0,0.00027397,2]
[391017804,1760290242426,-500.0,0.00027397,2]
[391017806,1760290242435,-500.0,0.00027397,2]
[391017808,1760290242444,-500.0,0.00027397,2]
[391017811,1760290242457,-500.0,0.00027397,2]
[391017814,1760290242471,-437.82,0.00027397,2]
[391017815,1760290242480,-1000.0,0.00027397,2]
[391017816,1760290242489,-765.12,0.00027397,2]
[391017817,1760290242499,-765.12,0.00027397,2]
[391017818,1760290242509,-765.12,0.00027397,2]
[391017820,1760290242521,-765.12,0.00027397,2]
[391017822,1760290242530,-765.12,0.00027397,2]
[391017825,1760290242539,-765.12,0.00027397,2]
[391017827,1760290242549,-765.12,0.00027397,2]
[391017829,1760290242558,-765.12,0.00027397,2]
[391017831,1760290242568,-765.12,0.00027397,2]
[391017833,1760290242577,-765.12,0.00027397,2]
[391017834,1760290242587,-765.12,0.00027397,2]
[391017835,1760290242596,-765.12,0.00027397,2]
[391017836,1760290242605,-765.12,0.00027397,2]
[391017837,1760290242614,-765.12,0.00027397,2]
[391017839,1760290242623,-765.12,0.00027397,2]
[391017840,1760290242632,-765.12,0.00027397,2]
[391017841,1760290242641,-765.12,0.00027397,2]
[391017842,1760290242650,-765.12,0.00027397,2]
[391017843,1760290242659,-765.12,0.00027397,2]
[391017844,1760290242668,-765.12,0.00027397,2]
[391017845,1760290242677,-765.12,0.00027397,2]
[391017847,1760290242686,-765.12,0.00027397,2]
[391017848,1760290242695,-765.12,0.00027397,2]
[391017849,1760290242704,-765.31034028,0.00027397,2]
[391017850,1760290242712,-500.0,0.00027397,60]
[391017851,1760290242721,-500.0,0.00027397,60]
[391017852,1760290242731,-500.0,0.00027397,60]
[391017854,1760290242740,-231.6,0.00027397,60]
[391017855,1760290242749,-500.0,0.00027397,2]
[391017856,1760290242758,-500.0,0.00027397,2]
[391017857,1760290242770,-500.0,0.00027397,2]
[391017858,1760290242780,-638.762,0.00027397,2]
[391017859,1760290242790,-165.91026531,0.00027397,2]
[391017860,1760290242800,-2089.87,0.000274,2]
[391017861,1760290242809,-6288.95,0.000274,2]
[391017862,1760290242818,-171.70202717,0.000274,2]
[391017863,1760290242828,-309.0636489,0.000274,2]
[391017864,1760290242838,-549.44648694,0.000274,2]
[391017865,1760290242849,-334.25293905,0.000274,2]
[391017866,1760290242859,-382.00335892,0.000274,2]
[391017867,1760290242869,-960.0,0.0002745,2]
[391017868,1760290242878,-45458.86498575,0.000275,2]
[391017869,1760290242888,-2088.78532203,0.000276,30]
[391017870,1760290242899,-650.9056486,0.00027643,2]
[391017871,1760290242910,-596.88024831,0.00027687,2]
[391017872,1760290242920,-999.0,0.00027693,6]
[391017873,1760290242931,-858.51013584,0.00027698,2]
[391017874,1760290242941,-350.0,0.00027768,5]
[391017875,1760290242951,-155.59679572,0.0002779,15]
[391017876,1760290242961,-150.52,0.0002779,15]
[391017878,1760290242970,-981.0,0.00027829,2]
[391017879,1760290242980,-2840.70864809,0.0002785,60]
[391017880,1760290242989,-872.7417386,0.00027945,7]
[391017881,1760290242998,-1060.0,0.00027998,2]
[391017882,1760290243007,-8000.0,0.00028,2]
[391017883,1760290243021,-10322.31590394,0.00028,5]
[391017884,1760290243030,-1770.0,0.00028003,7]
[391017885,1760290243039,-168.0,0.00028081,2]
[391017886,1760290243048,-245.0,0.00028161,2]
[391017887,1760290243058,-245.0,0.00028228,2]
[391017888,1760290243067,-687.74936456,0.00028243,2]
[391017889,1760290243076,-1770.0,0.00028246,2]
[391017890,1760290243085,-245.0,0.00028273,2]
[391017891,1760290243094,-450.0,0.00028316,5]
[391017892,1760290243103,-245.0,0.00028336,2]
[391017893,1760290243113,-168.0,0.00028355,2]
[391017894,1760290243123,-1160.0,0.00028546,2]
[391017895,1760290243132,-1000.0,0.0002858,30]
[391017896,1760290243141,-245.0,0.00028587,2]
[391017897,1760290243150,-283.88925612,0.00028595,5]
[391017898,1760290243161,-330.32039442,0.00028595,5]
[391017899,1760290243171,-229.65566836,0.00028595,5]
[391017900,1760290243180,-245.0,0.00028645,2]
[391017901,1760290243189,-245.0,0.00028662,2]
[391017902,1760290243199,-724.59308052,0.00028843,2]
[391017903,1760290243208,-245.0,0.00028856,7]
[391017904,1760290243217,-450.0,0.00028864,5]
[391017905,1760290243226,-880.48519986,0.00029,2]
[391017906,1760290243238,-320.0,0.00029094,2]
[391017907,1760290243247,-1770.0,0.0002925,2]
[391017908,1760290243256,-1770.0,0.00029291,2]
[391017909,1760290243265,-168.0,0.00029292,2]
[391017910,1760290243277,-2641.47,0.00029417,2]
[391017911,1760290243287,-761.43679648,0.00029443,2]
[391017912,1760290243297,-1152.0,0.00029462,2]
[391017913,1760290243306,-31685.85893821,0.0002947,20]
[391017914,1760290243315,-21274.77057105,0.000295,120]
[391017915,1760290243324,-1286.750245,0.00029613,2]
[391017916,1760290243333,-68510.81,0.000297,7]
[391017917,1760290243342,-245.0,0.00029759,2]
[391017918,1760290243351,-200.0,0.00029856,120]
[391017919,1760290243360,-6288.95,0.0003,2]
[391017920,1760290243369,-36024.67642001,0.0003,7]
[391017921,1760290243384,-3912.91544636,0.0003,7]
[391017922,1760290243395,-2193.4165003,0.0003,7]
[391017923,1760290243464,-1000.0,0.00024947,2]
[391017924,1760290243473,-1000.0,0.00024947,2]
[391017925,1760290243483,-1000.0,0.00024947,2]
[391017926,1760290243492,-1000.0,0.00024947,2]
[391017927,1760290243501,-151.0,0.00026138,2]
[391017928,1760290243510,-53532.57869104,0.0003,7]
[391017929,1760290243524,-11076.0413686,0.0003,7]
[391017930,1760290243622,-1000.0,0.00024947,2]
[391017931,1760290243631,-1000.0,0.00024947,2]
[391017932,1760290243641,-1000.0,0.00024947,2]
[391017933,1760290243649,-1000.0,0.00024947,2]
[391017934,1760290243659,-151.0,0.00026083,2]
[391017935,1760290243668,-151.0,0.00026138,2]
[391017936,1760290243677,-198.0,0.00026193,2]
[391017937,1760290243686,-8945.30356763,0.0003,7]
[391017938,1760290243697,-27098.9999,0.0003,7]
[391017939,1760290243708,-1160.60784,0.0003,7]
[391017963,1760290245898,-300.0,0.00021,2]
[391017965,1760290245908,-1000.0,0.00024947,2]
[391017966,1760290245917,-1000.0,0.00024947,2]
[391017967,1760290245926,-1000.0,0.00024947,2]
[391017968,1760290245935,-1000.0,0.00024947,2]
[391017969,1760290245944,-1000.0,0.00024947,2]
[391017970,1760290245953,-151.0,0.00026083,2]
[391017971,1760290245962,-151.0,0.00026138,2]
[391017972,1760290245972,-99.62,0.0003,7]
[391017973,1760290245984,-11876.08579858,0.0003,7]
[391017974,1760290245995,-5240.146,0.0003,7]
[391017975,1760290257738,534.42423865,0.00020952,2]
[391017976,1760290257764,262.74868728,0.00020952,2]
[391017977,1760290261610,168.99689042,0.00020952,2]
[391017978,1760290261639,220.92188726,0.00020952,2]
[391017979,1760290261668,500.0,0.00020952,2]
[391017980,1760290261694,200.70442825,0.00020952,2]
[391017981,1760290261735,500.0,0.00020952,2]
[391017982,1760290261764,571.71306512,0.00020952,2]
[391017983,1760290266747,7040.50080302,0.00020953,2]
[391017984,1760290266770,10000.01,0.00020953,2]
[391017985,1760290266792,10000.01,0.00020953,2]
[391017986,1760290266817,10000.01,0.00020953,2]
[391017987,1760290266840,10000.01,0.00020953,2]
[391017988,1760290266862,10000.01,0.00020953,2]
[391017989,1760290266885,10000.01,0.00020953,2]
[391017990,1760290266909,10000.01,0.00020953,2]
[391017991,1760290266934,10000.01,0.00020953,2]
[391017992,1760290266956,10000.01,0.00020953,2]
[391017993,1760290274268,-941.83,0.0002031,2]
[391017994,1760290275635,-8116.35,0.00020953,2]
[391017995,1760290275788,-10000.01,0.00020953,2]
[391017996,1760290275927,-10000.01,0.00020953,2]
[391017997,1760290276067,-10000.01,0.00020953,2]
[391017998,1760290276187,-10000.01,0.00020953,2]
[391017999,1760290276550,-10000.01,0.00020953,2]
[391018000,1760290276577,-10000.01,0.00020953,2]
[391018001,1760290276854,-10000.01,0.00020953,2]
[391018002,1760290276982,-10000.01,0.00020953,2]
[391018003,1760290277120,-10000.01,0.00020953,2]
[391018004,1760290283685,-1385.89,0.00020943,10]
[391018005,1760290283728,-7228.23,0.00020953,2]
[391018006,1760290283802,-10000.01,0.00020953,2]
[391018007,1760290283927,-10000.01,0.00020953,2]
[391018008,1760290284106,-10000.01,0.00020953,2]
[391018009,1760290284218,-10000.01,0.00020953,2]
[391018010,1760290284340,-10000.01,0.00020953,2]
[391018011,1760290284482,-10000.01,0.00020953,2]
[391018012,1760290285002,-10000.01,0.00020953,2]
[391018013,1760290285123,-10000.01,0.00020953,2]
[391018014,1760290285246,-10000.01,0.00020953,2]
[391018015,1760290289761,-10000.01,0.00020953,2]
[391018016,1760290289883,-10000.01,0.00020953,2]
[391018017,1760290290001,-10000.01,0.00020953,2]
[391018018,1760290290124,-10000.01,0.00020953,2]
[391018019,1760290290250,-10000.01,0.00020953,2]
[391018020,1760290290375,-10000.01,0.00020953,2]
[391018021,1760290290503,-10000.01,0.00020953,2]
[391018022,1760290290637,-2385.43080302,0.00020953,2]
[391018023,1760290290661,-5229.14839396,0.00020953,2]
[391018024,1760290335084,160.0,0.00024,120]
[391018025,1760290376940,227.5,0.000207,2]
[391018026,1760290437337,9772.51,0.00020953,2]
[391018027,1760290437361,10000.01,0.00020953,2]
[391018028,1760290437384,10000.01,0.00020953,2]
[391018029,1760290437405,10000.01,0.00020953,2]
[391018030,1760290437426,10000.01,0.00020953,2]
[391018031,1760290437447,10000.01,0.00020953,2]
[391018032,1760290437472,10000.01,0.00020953,2]
[391018033,1760290437497,10000.01,0.00020953,2]
[391018034,1760290437519,10000.01,0.00020953,2]
[391018035,1760290437541,10000.01,0.00020953,2]
[391018036,1760290452023,-5000.0,0.00020742,2]
[391018037,1760290452185,-1700.32,0.00020943,10]
[391018038,1760290452220,-300.0,0.00020952,2]
[391018039,1760290452471,-5000.0,0.00020535,2]
[391018040,1760290454321,-5999.39,0.00020953,2]
[391018041,1760290454450,-10000.01,0.00020953,2]
[391018042,1760290454556,-10000.01,0.00020953,2]
[391018043,1760290454671,-10000.01,0.00020953,2]
[391018044,1760290454817,-10000.01,0.00020953,2]
[391018045,1760290455126,-10000.01,0.00020953,2]
[391018046,1760290455262,-10000.01,0.00020953,2]
[391018047,1760290456056,-10000.01,0.00020953,2]
[391018048,1760290456178,-10000.01,0.00020953,2]
[391018049,1760290456304,-10000.01,0.00020953,2]
[391018050,1760290462309,160.0,0.00013699,2]
[391018051,1760290462627,260.0,0.00014247,2]
[391018052,1760290463147,360.0,0.00014795,2]
[391018053,1760290463293,460.0,0.00015342,2]
[391018054,1760290463608,560.0,0.0001589,2]
[391018055,1760290464006,660.0,0.00016438,2]
[391018056,1760290464200,-564.72070155,0.00020743,2]
[391018057,1760290464231,-1416.94,0.00020943,10]
[391018058,1760290464279,-6036.6885969,0.00020953,2]
[391018059,1760290464416,760.0,0.00016986,2]
[391018060,1760290464440,-10000.01,0.00020953,2]
[391018061,1760290464527,-10000.01,0.00020953,2]
[391018062,1760290464658,-10000.01,0.00020953,2]
[391018063,1760290464755,860.0,0.00017534,2]
[391018064,1760290464779,-10000.01,0.00020953,2]
[391018065,1760290464891,-10000.01,0.00020953,2]
[391018066,1760290465095,960.0,0.00018082,2]
[391018067,1760290465411,1060.0,0.0001863,2]
[391018068,1760290465440,-533.41856438,0.00020953,2]
[391018069,1760290465740,1160.0,0.00019178,2]
[391018070,1760290466056,1260.0,0.00019726,2]
[391018071,1760290467567,-306.40244894,0.00020274,2]
[391018072,1760290468135,-190.03248161,0.00020274,2]
[391018073,1760290468174,-9619.94503678,0.00020953,2]
[391018074,1760290468256,-10000.01,0.00020953,2]
[391018075,1760290468375,-10000.01,0.00020953,2]
[391018076,1760290468487,-10000.01,0.00020953,2]
[391018077,1760290472149,-5000.0,0.00020743,2]
[391018078,1760290472186,-0.01,0.00020953,2]
[391018079,1760290472286,-10000.01,0.00020953,2]
[391018080,1760290472393,-10000.01,0.00020953,2]
[391018081,1760290472520,-10000.01,0.00020953,2]
[391018082,1760290472624,-10000.01,0.00020953,2]
[391018083,1760290472768,-10000.01,0.00020953,2]
[391018084,1760290476177,-174.63478501,0.00020952,2]
[391018085,1760290476205,-207.3155935,0.00020952,2]
[391018086,1760290476260,-9236.10924298,0.00020953,2]
[391018087,1760290476284,-10000.01,0.00020953,2]
[391018088,1760290480214,-5000.0,0.00020742,2]
[391018089,1760290480266,-0.01,0.00020953,2]
[391018090,1760290480330,-1198.41144104,0.00020953,2]
[391018091,1760290480353,-7603.18711792,0.00020953,2]
[391018092,1760290491741,5000.0,0.00020972,2]
[391018093,1760290499545,5000.0,0.00020972,2]
[391018094,1760290506624,0.01,0.00020936,2]
[391018095,1760290506648,2679.2254092,0.00020936,2]
[391018096,1760290514825,5000.0,0.00020972,2]
[391018097,1760290517255,444.706646,0.00020698,2]
[391018098,1760290522597,1876.0779448,0.00020972,2]
[391018099,1760290522623,3123.9220552,0.00020972,2]
[391018100,1760290527120,1970.57,0.00019912,2]
[391018101,1760290537755,4905.5179448,0.00020972,2]
[391018102,1760290537781,94.4820552,0.00020972,2]
[391018103,1760290538011,193.04051928,0.000209,2]
[391018104,1760290560352,5000.0,0.00020972,2]
[391018105,1760290574145,205.14070986,0.000209,2]
[391018106,1760290582615,4507.34671566,0.00020972,2]
[391018107,1760290582639,492.65328434,0.00020972,2]
[391018108,1760290605108,5000.0,0.00020972,2]
[391018109,1760290610781,1945.49,0.00019857,2]
[391018110,1760290621624,604.97165708,0.00020867,6]
[391018111,1760290627349,1956.89505858,0.00020972,2]
[391018112,1760290627377,3043.10494142,0.00020972,2]
[391018113,1760290649712,5000.0,0.00020972,2]
[391018114,1760290673093,1956.90505858,0.00020972,2]
[391018115,1760290673117,3043.09494142,0.00020972,2]
[391018116,1760290680048,296.33,0.00015135,2]
[391018117,1760290690974,1920.73,0.00020036,2]
[391018118,1760290695460,4739.85505858,0.00020972,2]
[391018119,1760290695483,260.14494142,0.00020972,2]
[391018120,1760290718025,5000.0,0.00020972,2]
[391018121,1760290740318,4739.86505858,0.00020972,2]
[391018122,1760290740340,260.13494142,0.00020972,2]
[391018123,1760290742748,205.14070986,0.000209,2]
[391018124,1760290762622,5000.0,0.00020972,2]
[391018125,1760290771642,1896.28,0.00020036,2]
[391018126,1760290785596,2638.45434872,0.00020972,2]
[391018127,1760290785619,2361.54565128,0.00020972,2]
[391018128,1760290808864,5000.0,0.00020972,2]
[391018129,1760290811574,1391.4410406,0.00020936,2]
[391018130,1760290825192,1017.06,0.0002739,120]
[391018131,1760290829606,314.00325882,0.000209,2]
[391018132,1760290832154,5000.0,0.00020972,2]
[391018133,1760290835099,200.0,0.00027,120]
[391018134,1760290849165,2989.5919189,0.00020936,2]
[391018135,1760290852932,1696.41482228,0.00020045,2]
[391018136,1760290852955,388.07517772,0.00020045,2]
[391018137,1760290854293,5000.0,0.00020972,2]
[391018138,1760290877311,4611.93482228,0.00020972,2]
[391018139,1760290877367,388.06517772,0.00020972,2]
[391018140,1760290888613,182.0,0.00020712,3]
[391018141,1760290899858,5000.0,0.00020972,2]
[391018142,1760290922644,4429.94482228,0.00020972,2]
[391018143,1760290922667,570.05517772,0.00020972,2]
[391018145,1760290944698,5000.0,0.00020972,2]
[391018146,1760290945699,2187.01,0.00019867,2]
[391018147,1760290951186,154.96770746,0.000209,2]
[391018148,1760290982763,2087.97711482,0.00020972,2]
[391018149,1760290982788,2912.02288518,0.00020972,2]
[391018150,1760291005042,5000.0,0.00020972,2]
[391018151,1760291027970,5000.0,0.00020972,2]
[391018152,1760291035168,2159.18,0.00020159,2]
[391018153,1760291050940,5000.0,0.00020972,2]
[391018154,1760291073285,5000.0,0.00020972,2]
[391018155,1760291077039,0.01,0.000181,2]
[391018156,1760291077061,150.99,0.000181,2]
[391018157,1760291078017,151.0,0.00018433,2]
[391018158,1760291079025,151.0,0.00018766,2]
[391018159,1760291080002,151.0,0.000191,2]
[391018160,1760291096153,5000.0,0.00020972,2]
[391018161,1760291114657,2131.7,0.0001998,2]
[391018162,1760291119572,2264.32,0.00020972,2]
[391018163,1760291119595,2735.68,0.00020972,2]
[391018164,1760291141958,5000.0,0.00020972,2]
[391018165,1760291164332,2264.33,0.00020972,2]
[391018166,1760291164358,2735.67,0.00020972,2]
[391018168,1760291186667,922.31670242,0.00020972,2]
[391018169,1760291194012,1193.342098,0.00020936,2]
[391018170,1760291194140,2200.49,0.00020092,2]
[391018171,1760291204131,162.61409204,0.000209,2]
[391018172,1760291273658,2239.39,0.00020231,2]
[391018173,1760291287338,453.77403868,0.0002013,4]
[391018174,1760291287380,92.41306886,0.00020331,4]
[391018175,1760291287402,361.36096982,0.00020331,4]
[391018176,1760291287430,453.77403868,0.00020532,4]
[391018177,1760291287493,576.04897496,0.00020734,4]
[391018178,1760291369521,2210.88,0.00019864,2]
[391018179,1760291402933,160.0,0.00020972,2]
[391018180,1760291426869,1120.0,0.00020972,2]
[391018188,1760291431920,-300.0,0.00021,2]
[391018189,1760291431930,-300.0,0.00021,2]
[391018190,1760291431940,-161.70770798,0.00021,2]
[391018191,1760291431950,-4.4577988,0.00021051,2]
[391018194,1760291431972,-155.5422012,0.00021051,2]
[391018196,1760291431981,-930.0,0.00021369,2]
[391018197,1760291431991,-462.48842608,0.0002137,2]
[391018201,1760291432028,-737.51157392,0.0002137,2]
[391018202,1760291432037,-300.0,0.0002137,2]
[391018203,1760291432046,-300.0,0.00021371,20]
[391018204,1760291432056,-300.0,0.00021371,20]
[391018205,1760291432065,-300.0,0.00021371,20]
[391018206,1760291432075,-300.0,0.00021371,20]
[391018207,1760291432084,-300.0,0.00021371,20]
[391018208,1760291432093,-300.0,0.00021371,20]
[391018209,1760291432103,-300.0,0.00021371,20]
[391018210,1760291432116,-300.0,0.00021371,20]
[391018211,1760291432125,-300.0,0.00021371,20]
[391018212,1760291432135,-300.0,0.00021371,20]
[391018213,1760291432144,-300.0,0.00021371,20]
[391018215,1760291432154,-300.0,0.00021371,20]
[391018217,1760291432163,-300.0,0.00021371,20]
[391018220,1760291432172,-300.0,0.00021371,20]
[391018223,1760291432181,-300.0,0.00021371,20]
[391018225,1760291432190,-500.0,0.000214,2]
[391018227,1760291432199,-300.0,0.000215,2]
[391018229,1760291432208,-300.0,0.000215,2]
[391018231,1760291432217,-300.0,0.000215,2]
[391018233,1760291432226,-1000.0,0.00021516,2]
[391018235,1760291432235,-185.96386417,0.000216,2]
[391018237,1760291432244,-4421.77,0.0002167,2]
[391018239,1760291432253,-600.0,0.00021797,20]
[391018241,1760291432263,-999.0,0.00021917,2]
[391018243,1760291432271,-501.29636073,0.00021948,2]
[391018245,1760291432280,-210.22002037,0.000222,2]
[391018247,1760291432289,-234.47617657,0.000228,2]
[391018249,1760291432298,-1376.0,0.00023237,2]
[391018250,1760291432307,-420.0,0.00023237,2]
[391018251,1760291432316,-258.73233276,0.000234,2]
[391018252,1760291432325,-2855.02967148,0.0002341,2]
[391018253,1760291432336,-134.56224742,0.0002341,2]
[391018254,1760291432345,-4013.27295688,0.00023476,2]
[391018255,1760291432356,-421.6566616,0.00023476,2]
[391018274,1760291437795,-601.78719959,0.00023476,2]
[391018276,1760291437806,-1595.93318193,0.00023476,2]
[391018278,1760291437815,-1193.342098,0.00023662,2]
[391018280,1760291437826,-597.43996773,0.00023977,20]
[391018282,1760291437903,-122.56003227,0.00023977,20]
[391018283,1760291437913,-691.44,0.00024,2]
[391018284,1760291437924,-282.98848896,0.00024,2]
[391018285,1760291437935,-162.61409203,0.00024022,2]
[391018286,1760291437945,-1000.0,0.00024086,2]
[391018287,1760291437956,-1000.0,0.00024086,2]
[391018288,1760291437966,-1000.0,0.00024086,2]
[391018289,1760291437975,-1000.0,0.00024086,2]
[391018290,1760291437985,-1000.0,0.00024086,2]
[391018291,1760291437995,-197.7465276,0.00024086,2]
[391018292,1760291438004,-500.0,0.00024086,2]
[391018293,1760291438014,-500.0,0.00024086,2]
[391018294,1760291438024,-500.0,0.00024086,2]
[391018295,1760291438034,-500.0,0.00024086,2]
[391018296,1760291438044,-500.0,0.00024086,2]
[391018297,1760291438055,-500.0,0.00024086,2]
[391018298,1760291438064,-500.0,0.00024086,2]
[391018299,1760291438074,-500.0,0.00024086,2]
[391018300,1760291438084,-2851.99710813,0.000241,2]
[391018302,1760291438094,-1445.50615754,0.000241,2]
[391018304,1760291438104,-179.96321703,0.000241,2]
[391018305,1760291438116,-461.28960593,0.000241,2]
[391018306,1760291438125,-1318.9156276,0.000241,2]
[391018307,1760291438135,-437.42323442,0.000241,2]
[391018308,1760291438146,-217.23489934,0.000241,2]
[391018309,1760291438156,-176.89931863,0.000241,2]
[391018310,1760291438166,-1426.1206189,0.000241,2]
[391018311,1760291438175,-160.0,0.00024102,2]
[391018312,1760291438185,-160.0,0.00024102,2]
[391018313,1760291438195,-402.2877588,0.00024102,2]
[391018314,1760291438204,-160.0,0.00024102,2]
[391018315,1760291438214,-2088.78532203,0.0002411,2]
[391018316,1760291438224,-444.706646,0.00024122,2]
[391018317,1760291438244,-1391.4410406,0.00024307,2]
[391018318,1760291438254,-500.0,0.00024383,2]
[391018319,1760291438267,-500.0,0.00024383,2]
[391018320,1760291438277,-2851.99710813,0.000244,2]